fUSD/lending_fUSD_20250401
["ID","MTS","AMOUNT","RATE_DAILY","PERIOD"]
[356965295,1743509994133,-500.0,0.00049489,120]
[356965296,1743509994187,-500.0,0.00049489,120]
[356965297,1743509994238,-500.0,0.00049489,120]
[356965298,1743509994290,-500.0,0.00049489,120]
[356965299,1743509994340,-500.0,0.00049489,120]
[356965300,1743509994392,-500.0,0.00049489,120]
[356965301,1743509994445,-500.0,0.00049489,120]
[356965302,1743509994494,-500.0,0.00049489,120]
[356965303,1743509994544,-500.0,0.00049489,120]
[356965304,1743509994594,-500.0,0.00049489,120]
[356965305,1743509994643,-500.0,0.00049489,120]
[356965306,1743509994694,-500.0,0.00049489,120]
[356965307,1743509994744,-500.0,0.00049489,120]
[356965308,1743509994793,-500.0,0.00049489,120]
[356965309,1743509994844,-500.0,0.00049489,120]
[356965310,1743509994895,-500.0,0.00049489,120]
[356965311,1743509994946,-500.0,0.00049489,120]
[356965312,1743509994996,-500.0,0.00049489,120]
[356965313,1743509995044,-500.0,0.00049489,120]
[356965314,1743509995106,-500.0,0.00049489,120]
[356965315,1743509995169,-500.0,0.00049489,120]
[356965316,1743509995231,-500.0,0.00049489,120]
[356965317,1743509995289,-500.0,0.00049489,120]
[356965318,1743509995353,-538.70205831,0.00049489,120]
[356965319,1743509995415,-500.0,0.00049489,120]
[356965320,1743509995476,-500.0,0.00049489,120]
[356965321,1743509995538,-500.0,0.00049489,120]
[356965322,1743509995600,-500.0,0.00049489,120]
[356965323,1743509995656,-500.0,0.00049489,120]
[356965324,1743509995714,-500.0,0.00049489,120]
[356965325,1743509995773,-582.09,0.00049489,120]
[356965326,1743509995829,-500.0,0.00049489,120]
[356965327,1743509995887,-500.0,0.00049489,120]
[356965328,1743509996206,-545.75897883,0.00049489,120]
[356965329,1743509996255,-526.56,0.00049489,120]
[356965330,1743509996304,-500.0,0.00049489,120]
[356965331,1743509996361,-497.93838206,0.00049489,120]
[356965332,1743509996413,-500.0,0.00049489,120]
[356965333,1743509996463,-500.0,0.00049489,120]
[356965334,1743509996512,-500.0,0.00049489,120]
[356965335,1743509996563,-500.0,0.00049489,120]
[356965336,1743509996609,-181.72467266,0.00049489,120]
[356965337,1743509996660,-500.0,0.00049489,120]
[356965338,1743509996707,-500.0,0.00049489,120]
[356965339,1743509996752,-318.32477873,0.00049489,120]
[356965340,1743509996800,-500.0,0.00049489,120]
[356965341,1743509996846,-500.0,0.00049489,120]
[356965342,1743509996895,-500.0,0.00049489,120]
[356965343,1743509996944,-503.35320572,0.00049489,120]
[356965344,1743509997070,-500.0,0.00049489,120]
[356965345,1743509997140,-500.0,0.00049489,120]
[356965346,1743509997198,-505.30862383,0.00049489,120]
[356965347,1743509997252,-159.68135555,0.00049489,120]
[356965348,1743509997305,-500.0,0.00049489,120]
[356965349,1743509997356,-500.0,0.00049489,120]
[356965350,1743509997405,-268.8348771,0.00049489,120]
[356965351,1743509997455,-502.31161754,0.00049489,120]
[356965352,1743509997500,-500.0,0.00049489,120]
[356965353,1743509997561,-527.31692568,0.00049489,120]
[356965354,1743509997612,-500.0,0.00049489,120]
[356965355,1743509997661,-500.0,0.00049489,120]
[356965356,1743509997710,-508.67893534,0.00049489,120]
[356965357,1743509997760,-500.0,0.00049489,120]
[356965358,1743509997810,-5081.771313,0.00049489,120]
[356965359,1743509997858,-500.0,0.00049489,120]
[356965360,1743509997912,-500.0,0.00049489,120]
[356965361,1743509998080,-500.0,0.00049489,120]
[356965362,1743509998132,-504.9288183,0.00049489,120]
[356965363,1743509998181,-500.0,0.00049489,120]
[356965364,1743509998229,-500.0,0.00049489,120]
[356965365,1743509998277,-500.0,0.00049489,120]
[356965366,1743509998323,-500.0,0.00049489,120]
[356965367,1743509998368,-500.0,0.00049489,120]
[356965368,1743509998414,-518.791582,0.00049489,120]
[356965369,1743509998460,-500.0,0.00049489,120]
[356965370,1743509998508,-500.0,0.00049489,120]
[356965371,1743509998557,-500.0,0.00049489,120]
[356965372,1743509998603,-500.0,0.00049489,120]
[356965373,1743509998649,-500.0,0.00049489,120]
[356965374,1743509998695,-515.95146569,0.00049489,120]
[356965375,1743509998743,-500.0,0.00049489,120]
[356965376,1743509998789,-580.34261176,0.00049489,120]
[356965377,1743509998838,-500.0,0.00049489,120]
[356965378,1743509998976,-211.29166966,0.00049489,120]
[356965379,1743509999024,-530.29064533,0.00049489,120]
[356965380,1743509999072,-500.0,0.00049489,120]
[356965381,1743509999116,-538.97409157,0.00049489,120]
[356965382,1743509999165,-500.0,0.00049489,120]
[356965383,1743509999214,-500.0,0.00049489,120]
[356965384,1743509999262,-550.18005563,0.00049489,120]
[356965385,1743509999310,-235.060001,0.00049489,120]
[356965386,1743509999358,-500.0,0.00049489,120]
[356965387,1743509999404,-150.0,0.00049489,120]
[356965388,1743509999452,-500.0,0.00049489,120]
[356965389,1743509999500,-500.0,0.00049489,120]
[356965390,1743509999551,-500.0,0.00049489,120]
[356965391,1743509999599,-500.0,0.00049489,120]
[356965392,1743509999647,-500.0,0.00049489,120]
[356965393,1743509999696,-500.0,0.00049489,120]
[356965394,1743509999743,-500.0,0.00049489,120]
[356965395,1743509999884,-500.0,0.00049489,120]
[356965396,1743509999946,-500.0,0.00049489,120]
[356965397,1743509999994,-500.0,0.00049489,120]
[356965398,1743510000044,-500.0,0.00049489,120]
[356965399,1743510000093,-173.62557573,0.00049489,120]
[356965400,1743510000141,-500.0,0.00049489,120]
[356965401,1743510000189,-500.0,0.00049489,120]
[356965402,1743510000237,-500.0,0.00049489,120]
[356965403,1743510000285,-500.0,0.00049489,120]
[356965404,1743510000332,-500.0,0.00049489,120]
[356965405,1743510000383,-500.0,0.00049489,120]
[356965406,1743510000431,-500.0,0.00049489,120]
[356965407,1743510000480,-500.0,0.00049489,120]
[356965408,1743510000530,-500.0,0.00049489,120]
[356965409,1743510000581,-500.0,0.00049489,120]
[356965411,1743510000632,-500.0,0.00049489,120]
[356965412,1743510000683,-207.83688762,0.00049489,120]
[356965413,1743510000825,-500.0,0.00049489,120]
[356965414,1743510000877,-500.0,0.00049489,120]
[356965415,1743510000928,-532.71,0.00049489,120]
[356965416,1743510000977,-500.0,0.00049489,120]
[356965417,1743510001025,-167.46696108,0.00049489,120]
[356965418,1743510001073,-500.0,0.00049489,120]
[356965419,1743510001122,-500.0,0.00049489,120]
[356965420,1743510001172,-4304.59,0.00049489,120]
[356965421,1743510001220,-500.0,0.00049489,120]
[356965422,1743510001269,-500.0,0.00049489,120]
[356965423,1743510001317,-500.0,0.00049489,120]
[356965424,1743510001365,-500.0,0.00049489,120]
[356965425,1743510001412,-500.0,0.00049489,120]
[356965426,1743510001460,-500.0,0.00049489,120]
[356965427,1743510001510,-225.5080392,0.00049489,120]
[356965428,1743510001568,-500.0,0.00049489,120]
[356965429,1743510001615,-500.0,0.00049489,120]
[356965430,1743510001761,-500.0,0.00049489,120]
[356965431,1743510001812,-500.0,0.00049489,120]
[356965432,1743510001862,-500.0,0.00049489,120]
[356965433,1743510001915,-500.0,0.00049489,120]
[356965434,1743510001966,-500.0,0.00049489,120]
[356965435,1743510002021,-500.0,0.00049489,120]
[356965436,1743510002071,-500.0,0.00049489,120]
[356965437,1743510002120,-500.0,0.00049489,120]
[356965438,1743510002168,-1723.24,0.00049489,120]
[356965439,1743510002219,-644.69494808,0.00049489,120]
[356965440,1743510002268,-525.87,0.00049489,120]
[356965441,1743510002313,-500.0,0.00049489,120]
[356965442,1743510002362,-500.0,0.00049489,120]
[356965443,1743510002409,-500.0,0.00049489,120]
[356965444,1743510002461,-500.0,0.00049489,120]
[356965445,1743510002514,-500.0,0.00049489,120]
[356965446,1743510002567,-500.0,0.00049489,120]
[356965447,1743510002703,-500.0,0.00049489,120]
[356965448,1743510002755,-500.0,0.00049489,120]
[356965449,1743510002829,-500.0,0.00049489,120]
[356965450,1743510002892,-500.0,0.00049489,120]
[356965451,1743510002951,-500.0,0.00049489,120]
[356965452,1743510003005,-500.0,0.00049489,120]
[356965453,1743510003062,-583.86449873,0.00049489,120]
[356965454,1743510003117,-500.0,0.00049489,120]
[356965455,1743510003171,-500.0,0.00049489,120]
[356965456,1743510003224,-598.04869133,0.00049489,120]
[356965457,1743510003282,-479.8903443,0.00049489,120]
[356965458,1743510003337,-551.21773389,0.00049489,120]
[356965459,1743510003390,-500.0,0.00049489,120]
[356965460,1743510003442,-4117.16,0.00049489,120]
[356965461,1743510003500,-500.0,0.00049489,120]
[356965462,1743510003560,-500.0,0.00049489,120]
[356965463,1743510003616,-233.02065833,0.00049489,120]
[356965464,1743510003820,-500.0,0.00049489,120]
[356965465,1743510003878,-534.6851599,0.00049489,120]
[356965466,1743510003932,-500.0,0.00049489,120]
[356965467,1743510003985,-500.0,0.00049489,120]
[356965468,1743510004041,-500.0,0.00049489,120]
[356965469,1743510004094,-500.0,0.00049489,120]
[356965470,1743510004151,-500.0,0.00049489,120]
[356965471,1743510004204,-500.0,0.00049489,120]
[356965472,1743510004255,-500.0,0.00049489,120]
[356965473,1743510004306,-500.0,0.00049489,120]
[356965474,1743510004356,-500.0,0.00049489,120]
[356965475,1743510004405,-165.09,0.00049489,120]
[356965476,1743510004455,-500.0,0.00049498,120]
[356965477,1743510004505,-500.0,0.00049498,120]
[356965478,1743510004556,-209.66998692,0.00049498,120]
[356965479,1743510004604,-500.0,0.00049498,120]
[356965480,1743510004751,-500.0,0.00049498,120]
[356965481,1743510004803,-500.0,0.00049498,120]
[356965482,1743510004853,-500.0,0.00049498,120]
[356965483,1743510004903,-500.0,0.00049498,120]
[356965484,1743510004956,-500.0,0.00049498,120]
[356965485,1743510005006,-500.0,0.00049498,120]
[356965486,1743510005056,-500.0,0.00049498,120]
[356965487,1743510005107,-500.0,0.00049498,120]
[356965488,1743510005157,-500.0,0.00049498,120]
[356965489,1743510005209,-500.0,0.00049498,120]
[356965490,1743510005259,-500.0,0.00049498,120]
[356965491,1743510005309,-500.0,0.00049498,120]
[356965492,1743510005360,-570.08,0.00049498,120]
[356965493,1743510005408,-500.0,0.00049498,120]
[356965494,1743510005460,-500.0,0.00049498,120]
[356965495,1743510005511,-500.0,0.00049498,120]
[356965496,1743510005564,-500.0,0.00049498,120]
[356965497,1743510005705,-500.0,0.00049498,120]
[356965498,1743510005755,-500.0,0.00049498,120]
[356965499,1743510005806,-500.0,0.00049498,120]
[356965500,1743510005855,-500.0,0.00049498,120]
[356965501,1743510005905,-500.0,0.00049498,120]
[356965502,1743510005954,-500.0,0.00049498,120]
[356965503,1743510006004,-500.0,0.00049498,120]
[356965504,1743510006053,-500.0,0.00049498,120]
[356965505,1743510006102,-500.0,0.00049498,120]
[356965506,1743510006150,-500.0,0.00049498,120]
[356965507,1743510006198,-555.89545547,0.00049498,120]
[356965508,1743510006247,-500.0,0.00049498,120]
[356965509,1743510006299,-643.60952069,0.00049498,120]
[356965510,1743510006351,-500.0,0.00049498,120]
[356965511,1743510006402,-500.0,0.00049498,120]
[356965512,1743510006452,-500.0,0.00049498,120]
[356965513,1743510006501,-500.0,0.00049498,120]
[356965514,1743510006654,-1322.01,0.00049498,120]
[356965515,1743510006706,-394.89997597,0.00049498,120]
[356965516,1743510006751,-500.0,0.00049498,120]
[356965517,1743510006801,-500.0,0.00049498,120]
[356965518,1743510006851,-548.06715093,0.00049498,120]
[356965519,1743510006900,-538.24354434,0.00049498,120]
[356965520,1743510006950,-500.0,0.00049498,120]
[356965521,1743510007000,-500.0,0.00049498,120]
[356965522,1743510007049,-500.0,0.00049498,120]
[356965523,1743510007099,-500.0,0.00049498,120]
[356965524,1743510007148,-500.0,0.00049498,120]
[356965525,1743510007197,-500.0,0.00049498,120]
[356965526,1743510007246,-563.83527559,0.00049498,120]
[356965527,1743510007296,-381.84085996,0.00049498,120]
[356965528,1743510007346,-507.23512499,0.00049498,120]
[356965529,1743510007397,-500.0,0.00049498,120]
[356965530,1743510007445,-500.0,0.00049498,120]
[356965531,1743510007610,-505.37160911,0.00049498,120]
[356965532,1743510007661,-522.53994826,0.00049498,120]
[356965533,1743510007711,-500.0,0.00049498,120]
[356965534,1743510007758,-532.93691018,0.00049498,120]
[356965535,1743510007807,-500.0,0.00049498,120]
[356965536,1743510007855,-538.45240306,0.00049498,120]
[356965537,1743510007903,-500.0,0.00049498,120]
[356965538,1743510007951,-500.0,0.00049498,120]
[356965539,1743510008004,-563.4703902,0.00049498,120]
[356965540,1743510008053,-500.0,0.00049498,120]
[356965541,1743510008103,-543.70635718,0.00049498,120]
[356965542,1743510008154,-500.0,0.00049498,120]
[356965543,1743510008203,-500.0,0.00049498,120]
[356965544,1743510008254,-524.62688121,0.00049498,120]
[356965545,1743510008304,-500.0,0.00049498,120]
[356965546,1743510008353,-500.0,0.00049498,120]
[356965547,1743510008404,-500.0,0.00049498,120]
[356965548,1743510008553,-500.0,0.00049498,120]
[356965549,1743510008603,-522.68441329,0.00049498,120]
[356965550,1743510008657,-500.0,0.00049498,120]
[356965551,1743510008708,-500.99098777,0.00049498,120]
[356965552,1743510008758,-529.99750222,0.00049498,120]
[356965553,1743510008809,-578.73193665,0.00049498,120]
[356965554,1743510008860,-500.0,0.00049498,120]
[356965555,1743510008909,-522.58790894,0.00049498,120]
[356965556,1743510008960,-500.0,0.00049498,120]
[356965557,1743510009009,-532.80245563,0.00049498,120]
[356965558,1743510009058,-500.0,0.00049498,120]
[356965559,1743510009109,-500.0,0.00049498,120]
[356965560,1743510009158,-503.61318799,0.00049498,120]
[356965561,1743510009208,-523.19877592,0.00049498,120]
[356965562,1743510009257,-509.19688294,0.00049498,120]
[356965563,1743510009307,-534.49,0.00049498,120]
[356965564,1743510009356,-528.34947316,0.00049498,120]
[356965565,1743510009498,-500.0,0.00049498,120]
[356965566,1743510009552,-500.0,0.00049498,120]
[356965567,1743510009602,-509.62036434,0.00049498,120]
[356965568,1743510009651,-500.76589911,0.00049498,120]
[356965569,1743510009701,-545.17985065,0.00049498,120]
[356965570,1743510009748,-256.37777342,0.00049498,120]
[356965571,1743510009797,-500.0,0.00049498,120]
[356965572,1743510009846,-512.49905206,0.00049498,120]
[356965573,1743510009897,-500.0,0.00049498,120]
[356965574,1743510009947,-500.0,0.00049498,120]
[356965575,1743510009995,-500.0,0.00049498,120]
[356965576,1743510010045,-500.0,0.00049498,120]
[356965577,1743510010095,-507.55763576,0.00049498,120]
[356965578,1743510010146,-507.06699338,0.00049498,120]
[356965579,1743510010191,-500.0,0.00049498,120]
[356965580,1743510010243,-500.0,0.00049498,120]
[356965581,1743510010294,-526.85813038,0.00049498,120]
[356965582,1743510010445,-505.31916162,0.00049498,120]
[356965583,1743510010499,-500.0,0.00049498,120]
[356965584,1743510010551,-500.0,0.00049498,120]
[356965585,1743510010602,-504.63203087,0.00049498,120]
[356965586,1743510010653,-500.0,0.00049498,120]
[356965587,1743510010703,-500.0,0.00049498,120]
[356965588,1743510010753,-594.3125511,0.00049498,120]
[356965589,1743510010803,-500.0,0.00049498,120]
[356965590,1743510010852,-500.0,0.00049498,120]
[356965591,1743510010899,-500.0,0.00049498,120]
[356965592,1743510010947,-491.96127247,0.00049498,120]
[356965593,1743510010995,-500.0,0.00049498,120]
[356965594,1743510011042,-500.0,0.00049498,120]
[356965595,1743510011091,-500.0,0.00049498,120]
[356965596,1743510011138,-505.59984326,0.00049498,120]
[356965597,1743510011187,-500.0,0.00049498,120]
[356965598,1743510011324,-500.0,0.00049498,120]
[356965599,1743510011375,-500.0,0.00049498,120]
[356965600,1743510011425,-500.0,0.00049498,120]
[356965601,1743510011475,-500.0,0.00049498,120]
[356965602,1743510011526,-500.0,0.00049498,120]
[356965603,1743510011574,-500.0,0.00049498,120]
[356965604,1743510011624,-500.0,0.00049498,120]
[356965605,1743510011670,-500.0,0.00049498,120]
[356965606,1743510011721,-500.0,0.00049498,120]
[356965607,1743510011770,-500.0,0.00049498,120]
[356965608,1743510011819,-500.0,0.00049499,120]
[356965609,1743510011868,-1556.0,0.000495,120]
[356965610,1743510011916,-506.11290839,0.000495,120]
[356965611,1743510011965,-500.0,0.00049763,120]
[356965612,1743510012013,-500.0,0.00049763,120]
[356965613,1743510012062,-500.0,0.00049763,120]
[356965614,1743510012110,-500.0,0.00049763,120]
[356965615,1743510012248,-500.0,0.00049763,120]
[356965616,1743510012299,-500.0,0.00049763,120]
[356965617,1743510012347,-500.0,0.00049763,120]
[356965618,1743510012399,-500.0,0.00049763,120]
[356965619,1743510012447,-500.0,0.00049763,120]
[356965620,1743510012496,-505.88962294,0.00049763,120]
[356965621,1743510012548,-500.0,0.00049763,120]
[356965622,1743510012598,-582.09,0.00049763,120]
[356965623,1743510012654,-500.0,0.00049763,120]
[356965624,1743510012706,-642.22646148,0.00049763,120]
[356965625,1743510012756,-500.0,0.00049763,120]
[356965626,1743510012810,-500.0,0.00049763,120]
[356965627,1743510012862,-619.60037416,0.00049763,120]
[356965628,1743510012913,-150.0,0.00049763,120]
[356965629,1743510012966,-500.0,0.00049763,120]
[356965630,1743510013017,-500.0,0.00049763,120]
[356965631,1743510013067,-500.0,0.00049763,120]
[356965632,1743510013217,-388.6481072,0.00049763,120]
[356965633,1743510013268,-500.0,0.00049763,120]
[356965634,1743510013317,-500.0,0.00049763,120]
[356965635,1743510013366,-546.5783224,0.00049763,120]
[356965636,1743510013416,-500.0,0.00049763,120]
[356965637,1743510013466,-532.39953652,0.00049763,120]
[356965638,1743510013522,-500.0,0.00049763,120]
[356965639,1743510013572,-500.0,0.00049763,120]
[356965640,1743510013622,-600.0,0.00049763,120]
[356965641,1743510013667,-500.0,0.00049763,120]
[356965642,1743510013717,-500.0,0.00049763,120]
[356965643,1743510013769,-280.27645921,0.00049763,120]
[356965644,1743510013820,-4304.59,0.00049763,120]
[356965645,1743510013872,-500.0,0.00049763,120]
[356965646,1743510013921,-500.0,0.00049763,120]
[356965647,1743510013974,-500.0,0.00049763,120]
[356965648,1743510014028,-500.0,0.00049763,120]
[356965649,1743510014185,-500.0,0.00049763,120]
[356965650,1743510014240,-1723.24,0.00049763,120]
[356965651,1743510014293,-500.0,0.00049763,120]
[356965652,1743510014344,-500.0,0.00049763,120]
[356965653,1743510014396,-500.0,0.00049763,120]
[356965654,1743510014446,-500.0,0.00049763,120]
[356965655,1743510014496,-500.0,0.00049763,120]
[356965656,1743510014546,-500.0,0.00049763,120]
[356965657,1743510014604,-500.0,0.00049763,120]
[356965658,1743510014654,-500.0,0.00049763,120]
[356965659,1743510014725,-4117.16,0.00049763,120]
[356965660,1743510014779,-500.0,0.00049763,120]
[356965661,1743510014831,-500.0,0.00049763,120]
[356965662,1743510014882,-499.93320745,0.00049763,120]
[356965663,1743510014933,-500.0,0.00049763,120]
[356965664,1743510014983,-500.0,0.00049772,120]
[356965665,1743510015032,-500.0,0.00049772,120]
[356965666,1743510015219,-500.0,0.00049772,120]
[356965667,1743510015273,-500.0,0.00049772,120]
[356965668,1743510015324,-500.0,0.00049772,120]
[356965669,1743510015374,-500.0,0.00049772,120]
[356965670,1743510015422,-500.0,0.00049772,120]
[356965671,1743510015471,-1322.01,0.00049772,120]
[356965672,1743510015521,-500.0,0.00049772,120]
[356965673,1743510015574,-500.0,0.00049772,120]
[356965674,1743510015633,-599.16183465,0.00049772,120]
[356965675,1743510015685,-500.0,0.00049772,120]
[356965676,1743510015737,-500.0,0.00049772,120]
[356965677,1743510015786,-265.82960109,0.00049772,120]
[356965678,1743510015835,-500.0,0.00049772,120]
[356965679,1743510015889,-500.0,0.00049772,120]
[356965680,1743510015942,-500.0,0.00049772,120]
[356965681,1743510015992,-500.0,0.00049772,120]
[356965682,1743510016148,-579.01414671,0.00049772,120]
[356965683,1743510016202,-500.0,0.00049772,120]
[356965684,1743510016250,-520.17845877,0.00049772,120]
[356965685,1743510016301,-500.0,0.00049772,120]
[356965686,1743510016346,-500.0,0.00049772,120]
[356965687,1743510016394,-150.0,0.00049999,120]
[356965688,1743510016443,-431729.16680701,0.0005,120]
[356965689,1743510016495,-250.0,0.0005,120]
[356965690,1743510016544,-150.0,0.0005,120]
[356965691,1743510016595,-9979.7006,0.0005,120]
[356965692,1743510016647,-151.0,0.0005,120]
[356965693,1743510016696,-151.0,0.0005,120]
[356965694,1743510016748,-500.0,0.0005,120]
[356965695,1743510016807,-2564.353351,0.0005,120]
[356965696,1743510016856,-2564.353351,0.0005,120]
[356965697,1743510016919,-151.0,0.0005,120]
[356965698,1743510016973,-151.0,0.0005,120]
[356965699,1743510017151,-151.141745,0.0005,120]
[356965700,1743510017203,-151.0,0.0005,120]
[356965701,1743510017370,500.0,0.00049498,120]
[356965702,1743510017431,150.0,0.0005,120]
[356965703,1743510017488,150.0,0.0005,120]
[356965704,1743510017541,203.44297124,0.0005,120]
[356965705,1743510017595,150.63180077,0.0005,120]
[356965706,1743510017651,150.0,0.0005,120]
[356965707,1743510017705,150.0,0.0005,120]
[356965708,1743510017759,201.49262707,0.0005,120]
[356965709,1743510017812,150.0,0.0005,120]
[356965710,1743510017865,150.0,0.0005,120]
[356965711,1743510017915,207.81441874,0.0005,120]
[356965712,1743510017980,150.0,0.0005,120]
[356965713,1743510018032,150.0,0.0005,120]
[356965714,1743510018086,202.90186895,0.0005,120]
[356965715,1743510018211,-0.03,0.00026849,2]
[356965716,1743510018295,42532.0,0.00049479,120]
[356965717,1743510018360,500.0,0.0005,120]
[356965718,1743510018433,500.0,0.0005,120]
[356965719,1743510018494,500.0,0.0005,120]
[356965720,1743510018554,500.0,0.0005,120]
[356965721,1743510018614,500.0,0.0005,120]
[356965722,1743510018822,500.0,0.0005,120]
[356965723,1743510018883,500.0,0.0005,120]
[356965724,1743510018940,500.0,0.0005,120]
[356965725,1743510018992,500.0,0.0005,120]
[356965726,1743510019052,500.0,0.0005,120]
[356965727,1743510019111,500.0,0.0005,120]
[356965728,1743510019175,503.70882105,0.0005,120]
[356965729,1743510019245,163.24921412,0.0005,120]
[356965730,1743510019310,151.0,0.00045,120]
[356965731,1743510019459,152.52031915,0.0005,120]
[356965732,1743510019515,150.0,0.0005,120]
[356965733,1743510019573,500.0,0.0005,120]
[356965734,1743510019628,895.62200503,0.0005,120]
[356965735,1743510019748,2890.0,0.00049479,120]
[356965736,1743510019859,151.49,0.0004949,120]
[356965737,1743510019940,151.06141926,0.0005,120]
[356965738,1743510020034,-162.04,0.00026849,2]
[356965739,1743510020123,150.0,0.0005,120]
[356965740,1743510020184,150.0,0.0005,120]
[356965741,1743510020249,150.0,0.0005,120]
[356965742,1743510020305,224.66989744,0.0005,120]
[356965743,1743510023039,150.0,0.0005,120]
[356965744,1743510023232,150.0,0.0005,120]
[356965745,1743510023405,150.0,0.0005,120]
[356965746,1743510023755,195.10023213,0.0005,120]
[356965747,1743510024024,500.0,0.00049489,120]
[356965748,1743510024286,500.0,0.00049763,120]
[356965749,1743510025376,500.0,0.00049498,120]
[356965750,1743510026848,150.0,0.0005,120]
[356965751,1743510027069,150.0,0.0005,120]
[356965752,1743510027530,151.93408043,0.0005,120]
[356965753,1743510027584,500.0,0.00049498,120]
[356965754,1743510029186,8997.0,0.0005,120]
[356965755,1743510029434,8997.0,0.0005,120]
[356965756,1743510029605,500.0,0.00049488,120]
[356965757,1743510029657,8997.0,0.0005,120]
[356965758,1743510029840,500.0,0.00049762,120]
[356965759,1743510030173,8997.0,0.0005,120]
[356965760,1743510030622,8997.0,0.0005,120]
[356965761,1743510030925,8997.0,0.0005,120]
[356965762,1743510031249,8997.0,0.0005,120]
[356965763,1743510031520,8997.0,0.0005,120]
[356965764,1743510031763,8997.0,0.0005,120]
[356965765,1743510031934,1359.56,0.00049489,120]
[356965766,1743510032005,8997.0,0.0005,120]
[356965767,1743510032147,8997.0,0.0005,120]
[356965768,1743510032205,1359.56,0.00049763,120]
[356965769,1743510032285,500.0,0.00049498,120]
[356965770,1743510032343,8997.0,0.0005,120]
[356965771,1743510032525,8997.0,0.0005,120]
[356965772,1743510032581,415.43233565,0.00049772,120]
[356965773,1743510032705,8997.0,0.0005,120]
[356965774,1743510032899,8997.0,0.0005,120]
[356965775,1743510033088,8997.0,0.0005,120]
[356965776,1743510033295,8997.0,0.0005,120]
[356965777,1743510033610,8997.0,0.0005,120]
[356965778,1743510033669,8997.0,0.0005,120]
[356965779,1743510033836,9014.36843784,0.0005,120]
[356965780,1743510034453,500.0,0.00049498,120]
[356965781,1743510034887,500.0,0.00049488,120]
[356965782,1743510035120,500.0,0.00049762,120]
[356965783,1743510036337,500.0,0.00049498,120]
[356965784,1743510036580,500.0,0.00049772,120]
[356965785,1743510039750,944743.61,0.0005,120]
[356965786,1743510041803,500.0,0.0005,120]
[356965787,1743510041977,500.0,0.0005,120]
[356965788,1743510042091,500.0,0.00049488,120]
[356965789,1743510042163,500.0,0.0005,120]
[356965790,1743510042338,500.0,0.00049762,120]
[356965791,1743510042501,500.0,0.0005,120]
[356965792,1743510042585,500.0,0.0005,120]
[356965793,1743510042770,653.86042259,0.0005,120]
[356965794,1743510044300,500.0,0.0005,120]
[356965795,1743510044738,504.53732657,0.0005,120]